fUST/lending_fUST_20250609
["ID","MTS","AMOUNT","RATE_DAILY","PERIOD"]
[365022680,1749408634167,-440.0,0.0002004,2]
[365022681,1749408634177,-440.0,0.0002004,2]
[365022682,1749408634187,-440.0,0.0002004,2]
[365022683,1749408634197,-430.0,0.0002004,2]
[365022684,1749408634206,-440.0,0.0002004,2]
[365022685,1749408634216,-440.0,0.0002004,2]
[365022686,1749408634226,-440.0,0.0002004,2]
[365022687,1749408634235,-440.0,0.0002004,2]
[365022688,1749408634245,-440.0,0.0002004,2]
[365022689,1749408634255,-430.0,0.0002004,2]
[365022690,1749408634265,-440.0,0.0002004,2]
[365022691,1749408634274,-440.0,0.0002004,2]
[365022692,1749408634284,-440.0,0.0002004,2]
[365022693,1749408634294,-351.89463732,0.0002004,2]
[365022694,1749408634303,-440.0,0.0002004,2]
[365022695,1749408634313,-510.0,0.0002004,2]
[365022696,1749408634322,-440.0,0.0002004,2]
[365022697,1749408634332,-440.0,0.0002004,2]
[365022698,1749408634345,-401.94791511,0.0002004,2]
[365022699,1749408634354,-440.0,0.0002004,2]
[365022700,1749408634364,-440.0,0.0002004,2]
[365022701,1749408634373,-400.0,0.0002004,2]
[365022702,1749408634384,-430.0,0.0002004,2]
[365022703,1749408634393,-528.04361022,0.0002004,2]
[365022704,1749408634403,-400.0,0.0002004,2]
[365022705,1749408634413,-440.0,0.0002004,2]
[365022706,1749408634423,-440.0,0.0002004,2]
[365022707,1749408634432,-402.56902387,0.0002004,2]
[365022708,1749408634442,-440.0,0.0002004,2]
[365022709,1749408634451,-500.0,0.0002004,2]
[365022710,1749408634461,-440.0,0.0002004,2]
[365022711,1749408634470,-440.0,0.0002004,2]
[365022712,1749408634480,-402.7155122,0.0002004,2]
[365022713,1749408634490,-440.0,0.0002004,2]
[365022714,1749408634499,-440.0,0.0002004,2]
[365022715,1749408634518,-440.0,0.0002004,2]
[365022716,1749408634531,-440.0,0.0002004,2]
[365022717,1749408634542,-440.0,0.0002004,2]
[365022718,1749408634553,-507.63682359,0.0002004,2]
[365022719,1749408634563,-401.61404697,0.0002004,2]
[365022720,1749408634574,-423.22003313,0.0002004,2]
[365022721,1749408634584,-440.0,0.0002004,2]
[365022722,1749408634595,-414.71003041,0.0002004,2]
[365022723,1749408634606,-402.46978806,0.0002004,2]
[365022724,1749408634616,-440.0,0.0002004,2]
[365022725,1749408634626,-440.0,0.00020041,2]
[365022726,1749408634636,-507.47,0.00020041,2]
[365022727,1749408634646,-440.0,0.00020041,2]
[365022728,1749408634657,-440.0,0.00020041,2]
[365022729,1749408634667,-440.0,0.00020041,2]
[365022730,1749408634676,-440.0,0.00020041,2]
[365022731,1749408634686,-441.94390668,0.00020041,2]
[365022732,1749408634697,-440.0,0.00020041,2]
[365022733,1749408634707,-440.0,0.00020041,2]
[365022734,1749408634716,-500.0,0.00020041,2]
[365022735,1749408634726,-440.0,0.00020041,2]
[365022736,1749408634736,-440.0,0.00020041,2]
[365022737,1749408634746,-440.0,0.00020041,2]
[365022738,1749408634756,-402.52947357,0.00020041,2]
[365022739,1749408634765,-440.0,0.00020041,2]
[365022740,1749408634775,-440.0,0.00020041,2]
[365022741,1749408634784,-440.0,0.00020041,2]
[365022742,1749408634794,-440.0,0.00020041,2]
[365022743,1749408634804,-440.0,0.00020041,2]
[365022744,1749408634815,-400.0,0.00020041,2]
[365022745,1749408634826,-233.04985623,0.00020041,2]
[365022746,1749408634836,-430.0,0.00020041,2]
[365022747,1749408634846,-440.0,0.00020041,2]
[365022748,1749408634857,-507.88493114,0.00020041,2]
[365022749,1749408634868,-440.0,0.00020041,2]
[365022750,1749408634878,-430.0,0.00020041,2]
[365022751,1749408634888,-440.0,0.00020041,2]
[365022752,1749408634897,-440.0,0.00020041,2]
[365022753,1749408634907,-440.0,0.00020041,2]
[365022754,1749408634918,-430.0,0.00020041,2]
[365022755,1749408634928,-440.0,0.00020041,2]
[365022756,1749408634938,-440.0,0.00020041,2]
[365022757,1749408634949,-430.0,0.00020041,2]
[365022758,1749408634960,-440.0,0.00020041,2]
[365022759,1749408634970,-440.0,0.00020041,2]
[365022760,1749408634980,-440.0,0.00020041,2]
[365022761,1749408634991,-440.0,0.00020041,2]
[365022762,1749408635000,-380.96987757,0.00020041,2]
[365022763,1749408635010,-232.33200696,0.00020041,2]
[365022764,1749408635020,-440.0,0.00020041,2]
[365022765,1749408635031,-440.0,0.00020041,2]
[365022766,1749408635041,-440.0,0.00020041,2]
[365022767,1749408635050,-440.0,0.00020041,2]
[365022768,1749408635060,-400.44101049,0.00020041,2]
[365022769,1749408635070,-440.0,0.00020041,2]
[365022770,1749408635080,-430.0,0.00020041,2]
[365022771,1749408635091,-440.0,0.00020041,2]
[365022772,1749408635101,-441.0920171,0.00020041,2]
[365022773,1749408635111,-440.0,0.00020041,2]
[365022774,1749408635121,-500.0,0.00020041,2]
[365022775,1749408635135,-440.0,0.00020041,2]
[365022776,1749408635145,-440.0,0.00020041,2]
[365022777,1749408635155,-440.0,0.00020041,2]
[365022778,1749408635166,-440.0,0.00020041,2]
[365022779,1749408635176,-440.0,0.00020041,2]
[365022780,1749408635187,-604.37,0.00020041,2]
[365022781,1749408635197,-440.0,0.00020041,2]
[365022782,1749408635206,-440.0,0.00020041,2]
[365022783,1749408635216,-406.69462422,0.00020041,2]
[365022784,1749408635226,-440.0,0.00020041,2]
[365022785,1749408635236,-440.0,0.00020041,2]
[365022786,1749408635246,-554.01,0.00020041,2]
[365022787,1749408635256,-440.0,0.00020041,2]
[365022788,1749408635265,-400.0,0.00020041,2]
[365022789,1749408635275,-430.0,0.00020041,2]
[365022790,1749408635285,-408.09044017,0.00020041,2]
[365022791,1749408635294,-400.0,0.00020041,2]
[365022792,1749408635305,-574.68059444,0.00020041,2]
[365022793,1749408635315,-429.03418222,0.00020041,2]
[365022794,1749408635324,-440.0,0.00020041,2]
[365022795,1749408635335,-400.0,0.00020041,2]
[365022796,1749408635349,-440.0,0.00020041,2]
[365022797,1749408635358,-440.0,0.00020041,2]
[365022798,1749408635369,-440.0,0.00020041,2]
[365022799,1749408635379,-440.0,0.00020041,2]
[365022800,1749408635390,-440.0,0.00020041,2]
[365022801,1749408635400,-440.0,0.00020041,2]
[365022802,1749408635410,-430.0,0.00020041,2]
[365022803,1749408635419,-440.0,0.00020041,2]
[365022804,1749408635430,-440.0,0.00020041,2]
[365022805,1749408635440,-401.28383449,0.00020041,2]
[365022806,1749408635449,-440.0,0.00020041,2]
[365022807,1749408635459,-242.06017446,0.00020041,2]
[365022808,1749408635470,-440.0,0.00020041,2]
[365022809,1749408635479,-254.217416,0.00020187,2]
[365022810,1749408635489,-160.0,0.00020305,2]
[365022811,1749408635499,-440.0,0.00020313,2]
[365022812,1749408635509,-558.43,0.00020313,2]
[365022813,1749408635520,-440.0,0.00020313,2]
[365022814,1749408635530,-440.0,0.00020313,2]
[365022815,1749408635542,-440.0,0.00020313,2]
[365022816,1749408635553,-440.0,0.00020313,2]
[365022817,1749408635563,-440.0,0.00020314,2]
[365022818,1749408635573,-440.0,0.00020314,2]
[365022819,1749408635583,-440.0,0.00020314,2]
[365022820,1749408635592,-446.16,0.00020314,2]
[365022821,1749408635602,-440.0,0.00020314,2]
[365022822,1749408635612,-440.0,0.00020314,2]
[365022823,1749408635621,-440.0,0.00020314,2]
[365022824,1749408635632,-440.0,0.00020315,2]
[365022825,1749408635642,-440.0,0.00020315,2]
[365022826,1749408635652,-440.0,0.00020315,2]
[365022827,1749408635662,-440.0,0.00020315,2]
[365022828,1749408635673,-440.0,0.00020315,2]
[365022829,1749408635683,-154.04,0.00020315,2]
[365022830,1749408635692,-604.37,0.00020315,2]
[365022831,1749408635703,-440.0,0.00020315,2]
[365022832,1749408635712,-440.0,0.00020587,2]
[365022833,1749408635722,-558.43,0.00020587,2]
[365022834,1749408635732,-440.0,0.00020587,2]
[365022835,1749408635742,-440.0,0.00020587,2]
[365022836,1749408635755,-440.0,0.00020587,2]
[365022837,1749408635764,-500.0,0.00020588,2]
[365022838,1749408635774,-440.0,0.00020588,2]
[365022839,1749408635788,-440.0,0.00020589,2]
[365022840,1749408635799,-171.96,0.00020589,2]
[365022841,1749408635809,-440.0,0.00020589,2]
[365022842,1749408635820,-604.37,0.00020589,2]
[365022843,1749408635830,-285.52,0.000206,2]
[365022844,1749408635840,-600.0,0.00020808,2]
[365022845,1749408635850,-440.0,0.00020861,2]
[365022846,1749408635860,-558.43,0.00020861,2]
[365022847,1749408635870,-440.0,0.00020861,2]
[365022848,1749408635879,-440.0,0.00020861,2]
[365022849,1749408635889,-440.0,0.00020861,2]
[365022850,1749408635899,-440.0,0.00020862,2]
[365022851,1749408635908,-440.0,0.00020863,2]
[365022852,1749408635918,-440.0,0.00020863,2]
[365022853,1749408635927,-604.37,0.00020863,2]
[365022854,1749408635937,-500.0,0.00020899,2]
[365022855,1749408635947,-500.0,0.00020899,2]
[365022856,1749408635957,-500.0,0.00021037,2]
[365022857,1749408635967,-440.0,0.00021135,2]
[365022858,1749408635977,-558.43,0.00021135,2]
[365022859,1749408635987,-440.0,0.00021135,2]
[365022860,1749408635997,-440.0,0.00021135,2]
[365022861,1749408636007,-440.0,0.00021135,2]
[365022862,1749408636017,-440.0,0.00021136,2]
[365022863,1749408636027,-440.0,0.00021137,2]
[365022864,1749408636037,-440.0,0.00021137,2]
[365022865,1749408636047,-604.37,0.00021137,2]
[365022866,1749408636057,-538.0937288,0.00021175,2]
[365022867,1749408636067,-500.0,0.00021175,2]
[365022868,1749408636077,-500.0,0.00021299,2]
[365022869,1749408636087,-440.0,0.00021409,2]
[365022870,1749408636097,-558.43,0.00021409,2]
[365022871,1749408636108,-440.0,0.00021409,2]
[365022872,1749408636118,-440.0,0.00021409,2]
[365022873,1749408636128,-440.0,0.00021409,2]
[365022874,1749408636138,-440.0,0.0002141,2]
[365022875,1749408636148,-185.24,0.00021411,2]
[365022876,1749408636158,-440.0,0.00021411,2]
[365022877,1749408636168,-604.37,0.00021411,2]
[365022878,1749408636178,-440.0,0.00021683,2]
[365022879,1749408636188,-558.43,0.00021683,2]
[365022880,1749408636198,-440.0,0.00021683,2]
[365022881,1749408636208,-440.0,0.00021683,2]
[365022882,1749408636218,-440.0,0.00021683,2]
[365022883,1749408636228,-440.0,0.00021684,2]
[365022884,1749408636238,-440.0,0.00021685,2]
[365022885,1749408636248,-604.37,0.00021685,2]
[365022886,1749408636258,-1561.04,0.00021686,2]
[365022887,1749408636269,-500.0,0.00021817,2]
[365022888,1749408636281,-500.0,0.00021817,2]
[365022889,1749408636294,-500.0,0.00021817,2]
[365022890,1749408636304,-500.0,0.00021817,2]
[365022891,1749408636313,-500.0,0.00021817,2]
[365022892,1749408636323,-500.0,0.00021817,2]
[365022893,1749408636333,-600.0,0.00021904,2]
[365022894,1749408636347,-440.0,0.00021957,4]
[365022895,1749408636358,-558.43,0.00021957,4]
[365022896,1749408636368,-440.0,0.00021957,4]
[365022897,1749408636378,-440.0,0.00021957,4]
[365022898,1749408636389,-440.0,0.00021957,4]
[365022899,1749408636398,-440.0,0.00021958,4]
[365022900,1749408636408,-440.0,0.00021959,4]
[365022901,1749408636421,-604.37,0.00021959,4]
[365022902,1749408636431,-500.0,0.00022037,2]
[365022903,1749408636440,-500.0,0.00022037,2]
[365022904,1749408636450,-600.0,0.00022037,2]
[365022905,1749408636460,-153.0,0.00022082,2]
[365022906,1749408636470,-317.2624272,0.00022082,2]
[365022907,1749408636480,-153.0,0.00022082,2]
[365022908,1749408636491,-333.9580117,0.00022082,2]
[365022909,1749408636501,-506.65956259,0.0002212,2]
[365022910,1749408636512,-500.0,0.0002212,2]
[365022911,1749408636664,-1688.0,0.00022162,2]
[365022912,1749408636675,-151.0,0.00022162,2]
[365022913,1749408636685,-5000.0,0.00022162,2]
[365022914,1749408636696,-800.0,0.00022162,2]
[365022915,1749408636709,-800.0,0.00022162,2]
[365022916,1749408636719,-800.0,0.00022162,2]
[365022917,1749408636729,-800.0,0.00022162,2]
[365022918,1749408636739,-800.0,0.00022162,2]
[365022919,1749408636749,-800.0,0.00022162,2]
[365022920,1749408636759,-800.0,0.00022162,2]
[365022921,1749408636770,-800.0,0.00022162,2]
[365022922,1749408636780,-800.0,0.00022162,2]
[365022923,1749408636790,-800.0,0.00022162,2]
[365022924,1749408636801,-599.96143606,0.00022162,2]
[365022925,1749408636811,-207.4,0.00022162,2]
[365022926,1749408636822,-1750.456,0.00022217,2]
[365022927,1749408636832,-440.0,0.00022231,4]
[365022928,1749408636843,-558.43,0.00022231,4]
[365022929,1749408636853,-440.0,0.00022231,4]
[365022930,1749408636863,-440.0,0.00022231,4]
[365022931,1749408636873,-440.0,0.00022231,4]
[365022932,1749408636883,-440.0,0.00022232,4]
[365022933,1749408636893,-440.0,0.00022233,4]
[365022934,1749408636903,-604.37,0.00022233,4]
[365022935,1749408636913,-500.0,0.00022271,2]
[365022936,1749408636923,-559.14611511,0.00022271,2]
[365022937,1749408636933,-363.98479102,0.00022271,2]
[365022938,1749408636943,-219.96597335,0.00022272,2]
[365022939,1749408636953,-285.52,0.000223,7]
[365022940,1749408636963,-1000.0,0.00022365,2]
[365022941,1749408636973,-440.0,0.00022505,4]
[365022942,1749408636983,-558.43,0.00022505,4]
[365022943,1749408636993,-440.0,0.00022505,4]
[365022944,1749408637003,-440.0,0.00022505,4]
[365022945,1749408637014,-440.0,0.00022505,4]
[365022946,1749408637025,-440.0,0.00022506,4]
[365022947,1749408637035,-440.0,0.00022507,4]
[365022948,1749408637046,-604.37,0.00022507,4]
[365022949,1749408637056,-484.15155869,0.00022585,2]
[365022950,1749408637067,-1000.0,0.00022585,2]
[365022951,1749408637077,-1200.0,0.00022585,2]
[365022952,1749408637087,-1000.0,0.00022668,2]
[365022953,1749408637098,-5000.0,0.0002271,2]
[365022954,1749408637108,-440.0,0.00022779,4]
[365022955,1749408637118,-558.43,0.00022779,4]
[365022956,1749408637129,-440.0,0.00022779,4]
[365022957,1749408637139,-440.0,0.00022779,4]
[365022958,1749408637149,-440.0,0.00022779,4]
[365022959,1749408637158,-440.0,0.0002278,4]
[365022960,1749408637167,-440.0,0.00022781,4]
[365022961,1749408637179,-604.37,0.00022781,4]
[365022962,1749408637189,-9541.38727565,0.00022804,2]
[365023014,1749408730935,165.84,0.00013699,2]
[365023015,1749408731318,165.84,0.00013699,2]
[365023016,1749408731660,165.85698628,0.00013699,2]
[365023020,1749408806834,354.088961,0.00013699,2]
[365023032,1749409133224,418.0,0.00024568,30]
[365023082,1749409832257,-309.5484,0.00019118,2]
[365023144,1749409832827,-190.4516,0.00019118,2]
[365023146,1749409832837,-816.1177163,0.00019118,2]
[365023148,1749409832849,-370.3868027,0.00019118,2]
[365023150,1749409832860,-816.1177163,0.00019118,2]
[365023152,1749409832869,-816.1177163,0.00019118,2]
[365023154,1749409832879,-816.1177163,0.00019118,2]
[365023156,1749409832888,-816.1177163,0.00019118,2]
[365023158,1749409832897,-816.1177163,0.00019118,2]
[365023160,1749409832907,-816.1177163,0.00019118,2]
[365023162,1749409832916,-816.1177163,0.00019118,2]
[365023164,1749409832926,-816.1177163,0.00019118,2]
[365023166,1749409832936,-816.1177163,0.00019118,2]
[365023168,1749409832946,-816.1177163,0.00019118,2]
[365023170,1749409832956,-816.1177163,0.00019118,2]
[365023172,1749409832965,-415207.73476051,0.00019119,2]
[365023175,1749409832978,-41775.60259949,0.00019119,2]
[365023177,1749409832988,-797.5,0.00019293,2]
[365023179,1749409832998,-225.6793886,0.0001969,2]
[365023181,1749409833008,-1300.0,0.00019712,2]
[365023183,1749409833017,-504.21707405,0.0001994,2]
[365023185,1749409833027,-300.0,0.00020035,2]
[365023187,1749409833037,-300.0,0.00020035,2]
[365023189,1749409833046,-300.0,0.00020035,2]
[365023191,1749409833056,-300.0,0.00020035,2]
[365023193,1749409833066,-1200.0,0.00020035,2]
[365023195,1749409833076,-440.0,0.00020036,2]
[365023197,1749409833086,-440.0,0.00020036,2]
[365023200,1749409833096,-440.0,0.00020036,2]
[365023202,1749409833106,-995.29,0.00020036,2]
[365023204,1749409833115,-1300.22,0.00020036,2]
[365023206,1749409833124,-1127.97,0.00020036,2]
[365023208,1749409833133,-440.0,0.00020036,2]
[365023210,1749409833143,-440.0,0.00020036,2]
[365023212,1749409833152,-440.0,0.00020036,2]
[365023214,1749409833161,-1717.66,0.00020036,2]
[365023216,1749409833171,-440.0,0.00020036,2]
[365023218,1749409833180,-990.62,0.00020036,2]
[365023219,1749409833190,-1359.79,0.00020036,2]
[365023220,1749409833200,-420.0,0.00020036,2]
[365023221,1749409833210,-440.0,0.00020036,2]
[365023222,1749409833220,-271.12052583,0.00020036,2]
[365023223,1749409833230,-440.0,0.00020036,2]
[365023224,1749409833239,-440.0,0.00020036,2]
[365023225,1749409833249,-440.0,0.00020036,2]
[365023226,1749409833259,-440.0,0.00020036,2]
[365023227,1749409833269,-440.0,0.00020036,2]
[365023228,1749409833279,-353.22,0.00020037,2]
[365023229,1749409833289,-440.0,0.00020037,2]
[365023230,1749409833298,-440.0,0.00020037,2]
[365023231,1749409833307,-440.0,0.00020037,2]
[365023232,1749409833317,-440.0,0.00020037,2]
[365023233,1749409833327,-440.0,0.00020037,2]
[365023234,1749409833336,-440.0,0.00020037,2]
[365023235,1749409833346,-245.52723089,0.00020037,2]
[365023236,1749409833356,-440.0,0.00020037,2]
[365023237,1749409833366,-440.0,0.00020037,2]
[365023238,1749409833375,-440.0,0.00020037,2]
[365023239,1749409833386,-440.0,0.00020037,2]
[365023240,1749409833395,-440.0,0.00020037,2]
[365023241,1749409833404,-440.0,0.00020037,2]
[365023242,1749409833414,-440.09483473,0.00020037,2]
[365023243,1749409833424,-500.0,0.00020037,2]
[365023244,1749409833434,-500.0,0.00020037,2]
[365023245,1749409833444,-440.0,0.00020037,2]
[365023246,1749409833454,-995.49,0.00020037,2]
[365023247,1749409833464,-440.0,0.00020037,2]
[365023248,1749409833474,-440.0,0.00020037,2]
[365023249,1749409833483,-1896.07,0.00020037,2]
[365023250,1749409833493,-534.16,0.00020037,2]
[365023251,1749409833503,-440.0,0.00020037,2]
[365023252,1749409833513,-558.88568768,0.00020037,2]
[365023253,1749409833523,-390.0,0.00020037,2]
[365023254,1749409833533,-440.0,0.00020037,2]
[365023255,1749409833542,-440.0,0.00020037,2]
[365023256,1749409833552,-440.0,0.00020037,2]
[365023257,1749409833562,-440.0,0.00020037,2]
[365023258,1749409833572,-440.0,0.00020037,2]
[365023259,1749409833582,-440.0,0.00020037,2]
[365023260,1749409833591,-440.0,0.00020037,2]
[365023261,1749409833601,-440.0,0.00020037,2]
[365023262,1749409833611,-440.0,0.00020037,2]
[365023263,1749409833620,-440.0,0.00020037,2]
[365023264,1749409833630,-440.0,0.00020037,2]
[365023265,1749409833640,-440.0,0.00020037,2]
[365023266,1749409833649,-1222.95,0.00020037,2]
[365023267,1749409833660,-440.0,0.00020037,2]
[365023268,1749409833669,-440.0,0.00020037,2]
[365023269,1749409833679,-151.0,0.00020037,2]
[365023270,1749409833688,-440.0,0.00020037,2]
[365023271,1749409833699,-151.0,0.00020037,2]
[365023272,1749409833708,-151.0,0.00020037,2]
[365023273,1749409833718,-440.0,0.00020037,2]
[365023274,1749409833731,-500.0,0.00020037,2]
[365023275,1749409833745,-182.22821339,0.00020037,2]
[365023276,1749409833760,-287.63485949,0.00020037,2]
[365023277,1749409833776,-440.0,0.00020037,2]
[365023278,1749409833791,-440.0,0.00020037,2]
[365023279,1749409833802,-440.0,0.00020037,2]
[365023280,1749409833814,-440.0,0.00020037,2]
[365023281,1749409833828,-440.0,0.00020037,2]
[365023282,1749409833843,-440.0,0.00020037,2]
[365023283,1749409833857,-199.73397981,0.00020037,2]
[365023284,1749409833870,-350.0,0.00020037,2]
[365023285,1749409833884,-198.0,0.00020037,2]
[365023286,1749409833900,-253.29229518,0.00020037,2]
[365023287,1749409833914,-440.0,0.00020038,2]
[365023288,1749409833928,-500.0,0.00020038,2]
[365023289,1749409833941,-440.0,0.00020038,2]
[365023290,1749409833955,-440.0,0.00020038,2]
[365023291,1749409833968,-440.0,0.00020038,2]
[365023292,1749409833980,-420.0,0.00020038,2]
[365023293,1749409833993,-460.91737686,0.00020038,2]
[365023294,1749409834006,-420.0,0.00020038,2]
[365023295,1749409834018,-440.0,0.00020038,2]
[365023296,1749409834032,-558.48076791,0.00020038,2]
[365023297,1749409834046,-440.0,0.00020038,2]
[365023298,1749409834060,-440.0,0.00020038,2]
[365023299,1749409834073,-440.0,0.00020038,2]
[365023300,1749409834086,-440.0,0.00020038,2]
[365023301,1749409834096,-440.0,0.00020038,2]
[365023302,1749409834107,-440.0,0.00020038,2]
[365023303,1749409834121,-440.0,0.00020038,2]
[365023304,1749409834133,-547.80321957,0.00020038,2]
[365023305,1749409834147,-254.11833438,0.00020038,2]
[365023306,1749409834161,-440.0,0.00020038,2]
[365023307,1749409834176,-420.0,0.00020038,2]
[365023308,1749409834189,-440.0,0.00020038,2]
[365023309,1749409834203,-440.0,0.00020038,2]
[365023310,1749409834216,-440.0,0.00020038,2]
[365023311,1749409834231,-448.33,0.00020038,2]
[365023312,1749409834244,-440.0,0.00020038,2]
[365023313,1749409834259,-440.0,0.00020038,2]
[365023314,1749409834272,-440.0,0.00020038,2]
[365023315,1749409834283,-440.0,0.00020038,2]
[365023316,1749409834295,-440.0,0.00020038,2]
[365023317,1749409834306,-440.0,0.00020038,2]
[365023318,1749409834319,-440.0,0.00020038,2]
[365023319,1749409834333,-420.0,0.00020038,2]
[365023320,1749409834348,-440.0,0.00020038,2]
[365023321,1749409834362,-440.0,0.00020038,2]
[365023322,1749409834374,-440.0,0.00020038,2]
[365023323,1749409834385,-440.0,0.00020038,2]
[365023324,1749409834396,-440.0,0.00020038,2]
[365023325,1749409834408,-325.127361,0.00020038,2]
[365023326,1749409834421,-440.0,0.00020038,2]
[365023327,1749409834434,-407.3406,0.00020038,2]
[365023328,1749409834445,-440.0,0.00020038,2]
[365023329,1749409834456,-495.98,0.00020038,2]
[365023330,1749409834467,-440.0,0.00020038,2]
[365023331,1749409834479,-440.0,0.00020038,2]
[365023332,1749409834491,-440.0,0.00020038,2]
[365023333,1749409834503,-297.89612576,0.00020038,2]
[365023334,1749409834514,-440.0,0.00020038,2]
[365023335,1749409834526,-403.62305558,0.00020038,2]
[365023336,1749409834538,-440.0,0.00020038,2]
[365023337,1749409834550,-420.0,0.00020038,2]
[365023338,1749409834563,-440.0,0.00020038,2]
[365023339,1749409834575,-440.0,0.00020038,2]
[365023340,1749409834586,-440.0,0.00020038,2]
[365023341,1749409834598,-440.0,0.00020038,2]
[365023342,1749409834610,-440.0,0.00020038,2]
[365023343,1749409834621,-440.0,0.00020038,2]
[365023344,1749409834633,-440.0,0.00020038,2]
[365023345,1749409834645,-420.0,0.00020038,2]
[365023346,1749409834656,-440.0,0.00020038,2]
[365023347,1749409834668,-440.0,0.00020038,2]
[365023348,1749409834680,-440.0,0.00020038,2]
[365023349,1749409834691,-440.0,0.00020038,2]
[365023350,1749409834704,-440.0,0.00020038,2]
[365023351,1749409834716,-440.0,0.00020038,2]
[365023352,1749409834728,-215.42,0.00020038,2]
[365023353,1749409834739,-440.0,0.00020038,2]
[365023354,1749409834752,-440.0,0.00020038,2]
[365023355,1749409834765,-420.0,0.00020038,2]
[365023356,1749409834778,-440.0,0.00020038,2]
[365023357,1749409834790,-440.0,0.00020038,2]
[365023358,1749409834802,-440.0,0.00020038,2]
[365023359,1749409834815,-440.0,0.00020038,2]
[365023360,1749409834826,-440.0,0.00020038,2]
[365023361,1749409834839,-440.0,0.00020038,2]
[365023362,1749409834851,-420.0,0.00020038,2]
[365023363,1749409834863,-255.01132169,0.00020038,2]
[365023364,1749409834875,-420.0,0.00020038,2]
[365023365,1749409834888,-440.0,0.00020038,2]
[365023366,1749409834900,-151.0,0.00020038,2]
[365023367,1749409834912,-440.0,0.00020038,2]
[365023368,1749409834924,-500.0,0.00020038,2]
[365023369,1749409834937,-151.0,0.00020038,2]
[365023370,1749409834949,-440.0,0.00020038,2]
[365023371,1749409834960,-440.0,0.00020038,2]
[365023372,1749409834972,-256.94164732,0.00020038,2]
[365023373,1749409834983,-440.0,0.00020038,2]
[365023374,1749409834995,-440.0,0.00020038,2]
[365023375,1749409835008,-440.0,0.00020038,2]
[365023376,1749409835019,-440.0,0.00020038,2]
[365023377,1749409835031,-305.58150225,0.00020038,2]
[365023378,1749409835043,-440.0,0.00020038,2]
[365023379,1749409835055,-300.69,0.00020038,2]
[365023380,1749409835067,-440.0,0.00020038,2]
[365023381,1749409835080,-440.0,0.00020038,2]
[365023382,1749409835092,-420.0,0.00020038,2]
[365023383,1749409835104,-440.0,0.00020038,2]
[365023384,1749409835115,-440.0,0.00020038,2]
[365023385,1749409835127,-440.0,0.00020038,2]
[365023386,1749409835140,-440.0,0.00020038,2]
[365023387,1749409835152,-440.0,0.00020038,2]
[365023388,1749409835164,-189.34039913,0.00020038,2]
[365023389,1749409835175,-430.0,0.00020038,2]
[365023390,1749409835187,-440.0,0.00020038,2]
[365023391,1749409835196,-453.22447969,0.00020038,2]
[365023392,1749409835207,-370.0,0.00020038,2]